Cogmind - Beta 12 @@@ ROGUE MODE // 2023.11.02 @ 16:16:19 Player: monistgf Result: Self-destructed Performance ------------- Evolutions (6) 3000 Regions Visited (8) 1600 Robots Destroyed (151) 755 Value Destroyed (6322) 6322 Prototype IDs (9) 180 Alien Tech Used (0) 0 Bonus (492) 492 TOTAL SCORE: 12349 Bonus ------- High Alert Combat Kills 492 Cogmind --------- Core Integrity 28/1150 Matter 110/300 Energy 100/100 System Corruption 16% Temperature Cool (0) Movement Rolling (100) Location -4/Extension Parts ------- > --- POWER (2) -------- (None) > --- PROPULSION (4) --- Compact Wheel > --- UTILITY (9) ------ Advanced Heat Sink > --- WEAPON (4) ------- Ripper Ripper > --- INVENTORY (5) ---- Matter Compressor (129) Advanced Signal Interpreter Seismic Detector Peak State ------------ > --- POWER ------------ Light Antimatter Reactor Mini Fusion Reactor > --- PROPULSION ------- Armored Medium Treads Armored Wheel Armored Huge Wheel > --- UTILITY ---------- Advanced Cryofiber Web Advanced Heat Sink Improved Cooling System High-capacity Storage Unit Enhanced Optical Array Advanced Targeting Computer Improved Medium Armor Plating Hacking Suite Hacking Suite > --- WEAPON ----------- Phase Gun Long-range Phase Cannon Antimatter Cannon Hardcell Cannon > --- INVENTORY -------- Micro Fission Core Micro Fission Core Armored Leg Armored Wheel High-capacity Storage Unit Matter Compressor Structural Scanner Advanced Signal Interpreter Seismic Detector Kinecellerator Layered Medium Armor Plating Advanced Trap Extractor Gatling Laser Phase Cannon Heavy Assault Cannon Mass Driver Enhanced Gauss Cannon Heavy Missile Launcher Power Maul [Rating: 102] Favorites ----------- Power Improved Deuterium Engine Engine Improved Deuterium Engine Power Core Neutrino Core Reactor Mini Fusion Reactor Propulsion Compact Wheel Treads Armored Treads Leg Flexi-carbon Leg Wheel Compact Wheel Utility Hacking Suite Device Structural Scanner Storage High-capacity Storage Unit Processor Advanced Targeting Computer Hackware Hacking Suite Protection Layered Medium Armor Plating Weapon Improved Spread Laser Energy Gun Improved Spread Laser Energy Cannon Long-range Phase Cannon Ballistic Gun Flak Gun Ballistic Cannon Magnetic Acceleration Cannon Launcher Heavy Missile Launcher Impact Weapon Power Maul Slashing Weapon Ripper Piercing Weapon Spear Build | -11 -10 -9 -8 -7 -6 -5 -4 -4 ------- Run | Jun Mat Mat Mat Fac Fac Fac Fac Ext Slots Evolved 12 | . . 2 2 2 2 2 2 . Power 1 | . . . . . . 1 . . Propulsion 2 | . . 1 . . . . 1 . Utility 7 | . . . 2 1 2 1 1 . Weapon 2 | . . 1 . 1 . . . . Parts Attached 211 | . 8 10 21 51 51 28 37 5 Power 21 | . 1 1 3 3 3 4 6 . Engine 9 | . 1 1 1 2 3 1 . . Core 9 | . . . 2 1 . 3 3 . Reactor 3 | . . . . . . . 3 . Propulsion 43 | . 3 4 3 12 12 3 5 1 Treads 7 | . . . . 3 1 1 2 . Leg 8 | . . . 1 1 5 . 1 . Wheel 28 | . 3 4 2 8 6 2 2 1 Hover . | . . . . . . . . . Flight . | . . . . . . . . . Utility 65 | . 2 1 8 10 20 14 9 1 Device 34 | . 1 1 3 1 12 9 6 1 Storage 3 | . 1 . 1 1 . . . . Processor 9 | . . . 2 1 4 2 . . Hackware 3 | . . . . 1 1 1 . . Protection 16 | . . . 2 6 3 2 3 . Artifact . | . . . . . . . . . Weapon 82 | . 2 4 7 26 16 7 17 3 Energy Gun 24 | . 1 . 1 12 5 1 4 . Energy Cannon 5 | . . . . . . . 5 . Ballistic Gun 22 | . 1 4 6 8 2 . 1 . Ballistic Cannon 16 | . . . . 1 7 2 5 1 Launcher 3 | . . . . 1 1 . 1 . Special Weapon . | . . . . . . . . . Impact Weapon 9 | . . . . 3 1 4 1 . Slashing Weapon 2 | . . . . . . . . 2 Piercing Weapon 1 | . . . . 1 . . . . Special Melee Weapon . | . . . . . . . . . Unidentified Prototypes 7 | . . . 1 2 2 . 2 . Parts Lost 63 | . 1 1 6 9 15 6 24 1 Power 9 | . . . . 2 2 2 3 . Propulsion 16 | . . . 2 3 4 1 6 . Utility 18 | . . . 2 4 3 2 7 . Weapon 20 | . 1 1 2 . 6 1 8 1 Highest Loss Streak 22 | . 1 1 2 2 8 2 22 1 To Critical Strikes 1 | . . . . . . . 1 . Average Slot Usage (%) 94 | . 93 99 98 95 93 98 88 7 Engine 5 | . 14 11 1 5 5 3 . . Core 2 | . . . 7 1 . 5 3 . Treads 2 | . . . . 4 . . 4 . Leg 1 | . 12 . . . 3 . . . Wheel 15 | . 15 33 26 14 10 15 9 1 Device 13 | . 8 11 19 14 11 11 13 1 Storage 6 | . 14 11 9 7 6 5 4 . Processor 4 | . . . 5 . 6 6 9 . Hackware 8 | . . . . 6 12 14 9 . Protection 4 | . . . 2 6 5 4 4 . Energy Gun 10 | . 9 . 4 15 11 9 7 . Ballistic Gun 10 | . 18 32 22 12 3 5 2 . Ballistic Cannon 3 | . . . . . 9 4 4 1 Impact Weapon 1 | . . . . 1 . 2 1 . Naked Turns 51 | . . . . . . . 31 20 Heaviest Build 106 | 13 30 35 43 79 88 97 106 7 Greatest Support 51 | 20 26 42 48 44 51 40 40 16 Greatest Overweight (x) 8 | . 1 . 1 3 8 4 5 . Average Overweight (x) 1 | . . . . 1 3 2 1 . Largest Inventory Capacity 20 | . 15 15 15 20 20 20 20 5 Average Capacity 18 | . 12 15 15 18 20 20 19 5 Most Carried 20 | . 12 15 15 20 20 20 20 5 Average Carried 17 | . 8 13 13 17 18 18 18 3 Final Capacity 20 | 8 15 15 15 20 20 20 5 5 Final Carried 20 | 6 10 15 14 19 20 17 5 3 Class Distribution -------------------- 42% | Hacker-Gunner 17% | Tank 14% | Scavenger-Tank 10% | Gunner 6% | Mutant 3% | Hacker-Tank Dominant Class ---------------- Mutant | -10/Materials Gunner | -9/Materials Gunner | -8/Materials Tank | -7/Factory Hacker-Gunner | -6/Factory Hacker-Gunner | -5/Factory Hacker-Gunner | -4/Factory Mutant | -4/Extension Resources | -11 -10 -9 -8 -7 -6 -5 -4 -4 ----------- Run | Jun Mat Mat Mat Fac Fac Fac Fac Ext Matter Collected 5011 | 200 129 510 607 1052 1021 600 868 24 Remotely . | . . . . . . . . . Salvage Created 5573 | . 195 521 806 1436 902 548 987 178 Parts 267 | . 8 31 40 87 37 26 35 3 Haulers Intercepted 4 | . . 1 1 1 1 . . . Recyclers Shooed 4 | . . . 1 1 . 2 . . Parts Field Recycled . | . . . . . . . . . Retrieved Matter . | . . . . . . . . . Parts Self-Destructed . | . . . . . . . . . Prevented . | . . . . . . . . . Kills | -11 -10 -9 -8 -7 -6 -5 -4 -4 ------- Run | Jun Mat Mat Mat Fac Fac Fac Fac Ext Combat Hostiles Destroyed 110 | . 4 9 12 31 23 9 20 2 Melee 1 | . . . . . . . . 1 Guns 77 | . 3 9 12 28 12 6 7 . Cannons 22 | . . . . . 7 3 11 1 AOE 9 | . 1 . . 3 3 . 2 . Classes Destroyed 16 | . 1 4 2 5 3 1 . . Worker 7 | . . . . 3 2 2 . . Builder 10 | . . . . 7 . . 3 . Hauler 4 | . . 1 1 1 1 . . . Recycler 5 | . . 1 1 2 . . . 1 Mechanic 1 | . . . . . 1 . . . Operator 1 | . . . . . . 1 . . Watcher 13 | . . . 2 2 2 4 3 . Swarmer 20 | . . 2 . 10 2 2 4 . Saboteur 1 | . . . . . 1 . . . Grunt 36 | . 4 3 8 7 6 2 4 2 Duelist 2 | . . . 1 . . . 1 . Sentry 19 | . . 4 3 6 1 1 4 . Specialist 6 | . . . . . 6 . . . Hunter 8 | . . . . 3 1 2 2 . Programmer 16 | . . . . 4 5 2 5 . Heavy 2 | . . . . 1 1 . . . Best Kill Streak 11 | . 2 3 3 11 10 7 7 2 Combat Bots Only 8 | . 2 3 3 6 8 4 5 1 Max Kills in Single Turn 4 | . 1 2 2 4 3 2 3 1 Gunslinging . | . . . . . . . . . Exploded 2 | . 1 . . 2 1 . 2 . Melee 1 | . . . . . . . . 1 Uniques/NPCs Destroyed . | . . . . . . . . . Combat | -11 -10 -9 -8 -7 -6 -5 -4 -4 -------- Run | Jun Mat Mat Mat Fac Fac Fac Fac Ext Damage Taken 12738 | . 292 397 625 1949 3177 1240 4648 410 Core 1937 | . 122 86 66 213 253 75 898 224 Absorbed by Shields . | . . . . . . . . . Regen/Repaired (Parts) 141 | . . . . . . 70 71 . Core Remaining (%) 78 | 100 51 78 88 69 70 92 . . Volleys Fired 303 | . 19 24 53 66 52 23 53 13 Largest 4 | . 2 3 3 4 4 4 4 1 Hottest 358 | . 60 63 102 258 270 220 358 60 Shots Fired 967 | . 36 71 157 246 186 87 171 13 Gun 744 | . 36 71 157 237 109 61 73 . Cannon 214 | . . . . 7 74 26 94 13 Launcher 9 | . . . . 2 3 . 4 . Special . | . . . . . . . . . Kinetic 583 | . 22 71 128 131 99 48 71 13 Thermal 361 | . . . 29 113 84 39 96 . Explosive 9 | . . . . 2 3 . 4 . Electromagnetic 14 | . 14 . . . . . . . Robot Hit Streak 45 | . 11 8 12 22 13 21 45 16 Robot Miss Streak 7 | . 1 3 4 6 7 2 2 1 Penetration Max . | . . . . . . . . . Secondary Targets 6 | . . 1 . 4 . 1 . . Max Gunslinging Chain 1 | . . 1 . 1 . 1 . . Shots Hit Robots 684 | . 29 44 102 180 132 58 124 15 Core Hits 367 | . 10 19 37 122 91 38 46 4 Critical Kills 1 | . 1 . . . . . . . Critical Parts Destroyed . | . . . . . . . . . Critical Strikes 25 | . 2 . 3 2 3 4 10 1 Burn 10 | . . . 3 2 1 2 2 . Destroy 2 | . 1 . . . . . 1 . Blast 12 | . . . . . 2 2 7 1 Corrupt 1 | . 1 . . . . . . . Melee Attacks 25 | . . . . 6 2 11 1 5 Impact 16 | . . . . 2 2 11 1 . Slashing 5 | . . . . . . . . 5 Piercing 4 | . . . . 4 . . . . Sneak Attacks 2 | . . . . . . 1 . 1 Combat Hostiles . | . . . . . . . . . Follow-up Attacks 1 | . . . . . . . . 1 Damage Inflicted 18347 | . 393 602 1632 4465 4041 1995 4524 695 Guns 10236 | . 360 602 1632 3178 1878 1071 1515 . Cannons 4652 | . . . . 53 1075 562 2397 565 Explosions 3234 | . 33 . . 1234 1088 267 612 . Melee 196 | . . . . . . 66 . 130 Ramming 29 | . . . . . . 29 . . Kinetic 7968 | . 194 602 1315 1364 1380 882 1666 565 Thermal 6787 | . 33 . 317 1867 1573 751 2246 . Explosive 2934 | . . . . 1234 1088 . 612 . Electromagnetic 433 | . 166 . . . . 267 . . Impact 66 | . . . . . . 66 . . Slashing 130 | . . . . . . . . 130 Piercing . | . . . . . . . . . Highest Corruption 16 | . . . . 4 6 5 16 16 Average Corruption 3 | . . . . 2 3 3 3 16 Corruption Purged . | . . . . . . . . . Corruption Blocked 4 | . . . . . 4 . . . Effects 82 | . . . . 31 26 11 9 5 Message Errors 15 | . . . . 6 5 1 3 . Matter Fused 22 | . . . . 7 7 3 2 3 Heat Flow Errors 10 | . . . . 7 2 1 . . Energy Discharges 6 | . . . . 2 2 2 . . Parts Fused 1 | . . . . . . . . 1 Data Loss (minor) 16 | . . . . 7 5 1 2 1 Data Loss (major) 3 | . . . . . 2 1 . . Misfires 4 | . . . . 2 1 1 . . Alerts 2 | . . . . . 1 . 1 . Misdirections 1 | . . . . . . . 1 . Weapon Failures 2 | . . . . . 1 1 . . Overload Shots . | . . . . . . . . . Overflow Damage 435 | . . . . 205 16 40 124 50 Projectiles 189 | . . . . . 16 14 122 37 Explosions 207 | . . . . 205 . . 2 . Melee 39 | . . . . . . 26 . 13 Knockbacks 30 | . . . . . 13 3 11 3 Impact . | . . . . . . . . . Kinetic 30 | . . . . . 13 3 11 3 Secondary . | . . . . . . . . . Self-Inflicted Damage 79 | . 36 . . . 30 13 . . Shots 3 | . 1 . . . 2 . . . Rammed 3 | . . . . . . 3 . . Targets Rammed 3 | . . . . . . 3 . . Kicked . | . . . . . . . . . Crushed . | . . . . . . . . . Highest Temperature 422 | . 75 26 15 323 422 229 422 33 Average Temperature 101 | . 29 13 6 90 160 37 109 22 Received Heat Transfer 2219 | . 141 132 342 375 594 63 417 155 Effects 5 | . . . . . 4 . 1 . Energy Bleed 3 | . . . . . 2 . 1 . Interference 1 | . . . . . 1 . . . Matter Decay 1 | . . . . . 1 . . . Siege Activations . | . . . . . . . . . Robots Corrupted . | . . . . . . . . . Combat Hostiles . | . . . . . . . . . Parts Fried 1 | . . . . . . 1 . . Impact Corruptions 1 | . . . . . . 1 . . Robots Melted 1 | . . . . . 1 . . . Combat Hostiles 1 | . . . . . 1 . . . Parts Melted 20 | . . . 1 3 5 2 9 . Heat Transferred 11853 | . . . 1036 3051 2791 1655 3320 . Parts Sabotaged . | . . . . . . . . . Parts Stolen . | . . . . . . . . . Parts Stripped . | . . . . . . . . . Power Chain Reactions 1 | . 1 . . . . . . . Missiles Intercepted . | . . . . . . . . . Alert | -11 -10 -9 -8 -7 -6 -5 -4 -4 ------- Run | Jun Mat Mat Mat Fac Fac Fac Fac Ext Peak Influence 772 | . 108 389 323 772 542 437 552 295 Initial 360 | . . 45 79 123 360 229 208 243 Average 324 | . 46 159 189 412 379 271 318 269 Maximum Alert Level 3 | . . 1 1 3 2 2 2 1 Low Security (%) 19 | . 100 74 55 5 2 32 . . Level 1 51 | . . 25 44 54 51 47 77 100 Level 2 26 | . . . . 32 46 20 22 . Level 3 2 | . . . . 7 . . . . Level 4 . | . . . . . . . . . Level 5 . | . . . . . . . . . High Security . | . . . . . . . . . Max Security . | . . . . . . . . . Squads Dispatched 35 | . 1 . 1 10 13 4 6 . Investigation 3 | . 1 . . 1 . 1 . . Extermination 10 | . . . . 4 2 1 3 . Reinforcement 13 | . . . 1 3 5 2 2 . Assault 3 | . . . . 1 2 . . . Garrison 6 | . . . . 1 4 . 1 . Intercept . | . . . . . . . . . Searches Triggered . | . . . . . . . . . Construction Impeded 5 | . . . . . 2 1 2 . Haulers Reinforced 2 | . . . . 1 1 . . . Active Scanning Responses . | . . . . . . . . . Cargo Convoy Interrupts 2 | . . . . 1 1 . . . Stealth | -11 -10 -9 -8 -7 -6 -5 -4 -4 --------- Run | Jun Mat Mat Mat Fac Fac Fac Fac Ext Distress Signals 5 | . . . 5 . . . . . Communications Jammed . | . . . . . . . . . Distress Signals . | . . . . . . . . . Times Spotted 178 | . 5 15 18 36 41 26 35 2 Peak Tracking Total 10 | . 2 6 5 5 10 7 7 2 Tactical Retreats 10 | . . 2 2 . 1 4 1 . Traps | -11 -10 -9 -8 -7 -6 -5 -4 -4 ------- Run | Jun Mat Mat Mat Fac Fac Fac Fac Ext Traps Triggered 9 | . 1 . . 7 . 1 . . Indirectly . | . . . . . . . . . Trap Hack Attempts . | . . . . . . . . . Triggered . | . . . . . . . . . Disarmed . | . . . . . . . . . Reprogrammed . | . . . . . . . . . Reused . | . . . . . . . . . Traps Extracted . | . . . . . . . . . Installed . | . . . . . . . . . Triggered 3 | . . . . 3 . . . . Machines | -11 -10 -9 -8 -7 -6 -5 -4 -4 ---------- Run | Jun Mat Mat Mat Fac Fac Fac Fac Ext Machines Disabled 26 | . . . . 15 2 6 3 . Max in Single Turn 6 | . . . . 6 2 2 1 . Machines Repaired . | . . . . . . . . . Machines Sabotaged . | . . . . . . . . . Overloaded Fab Kills . | . . . . . . . . . Hacking | -11 -10 -9 -8 -7 -6 -5 -4 -4 --------- Run | Jun Mat Mat Mat Fac Fac Fac Fac Ext Machines Accessed 30 | . . 1 1 10 5 8 5 . Terminals 19 | . . 1 1 7 3 4 3 . Fabricators 5 | . . . . 3 1 1 . . Repair Stations 2 | . . . . . . 1 1 . Recycling Units 2 | . . . . . . 1 1 . Scanalyzers 2 | . . . . . 1 1 . . Garrison Access . | . . . . . . . . . Total Hacks 83 | . . 4 3 24 12 23 17 . Successful 47 | . . 1 1 8 4 18 15 . Failed 36 | . . 3 2 16 8 5 2 . Catastrophic 10 | . . 1 1 5 1 1 1 . Database Lockouts . | . . . . . . . . . Manual 30 | . . 4 . 7 5 3 11 . Terminals 56 | . . 4 3 19 6 10 14 . Fabricators 8 | . . . . 5 2 1 . . Repair Stations 8 | . . . . . . 6 2 . Recycling Units 5 | . . . . . . 4 1 . Scanalyzers 6 | . . . . . 4 2 . . Garrison Access . | . . . . . . . . . Terminal Hacks 20 | . . . 1 2 1 7 9 . Record 5 | . . . . . . 3 2 . Prototype ID Bank 1 | . . . . . . . 1 . Open Door 1 | . . . . . . . 1 . Level Access Points 1 | . . . . . . 1 . . Branch Access Points 3 | . . . . 1 . 1 1 . Machine Index 1 | . . . . . . 1 . . Fabricator Index 1 | . . . . . . . 1 . Alert Level 3 | . . . 1 . 1 . 1 . Locate Traps 2 | . . . . 1 . . 1 . Zone Layout 2 | . . . . . . 1 1 . Fabricator Hacks 5 | . . . . 3 1 1 . . Network Status 3 | . . . . 2 . 1 . . Build 2 | . . . . 1 1 . . . Repair Station Hacks 5 | . . . . . . 3 2 . Scan Component 3 | . . . . . . 2 1 . Repair 2 | . . . . . . 1 1 . Recycling Unit Hacks 4 | . . . . . . 3 1 . Process 1 | . . . . . . 1 . . Report Inventory 2 | . . . . . . 1 1 . Retrieve Matter 1 | . . . . . . 1 . . Scanalyzer 3 | . . . . . 1 2 . . Insert Component 2 | . . . . . 1 1 . . Analyze 1 | . . . . . . 1 . . Garrison Access Hacks . | . . . . . . . . . Unauthorized Hacks 10 | . . 1 . 3 1 2 3 . Terminals 9 | . . 1 . 3 1 1 3 . Track 1 | . . . . 1 . . . . Botnet 6 | . . 1 . 1 1 1 2 . Operators 2 | . . . . 1 . . 1 . Fabricators . | . . . . . . . . . Repair Stations . | . . . . . . . . . Recycling Units 1 | . . . . . . 1 . . Monitor 1 | . . . . . . 1 . . Scanalyzers . | . . . . . . . . . Garrison Access . | . . . . . . . . . Data Cores Recovered 1 | . . . . . . 1 . . Used 1 | . . . . . . 1 . . Hacking Detections 28 | . . 1 1 10 5 7 4 . Full Trace Events 2 | . . . . 1 . 1 . . Feedback Events 1 | . . . . 1 . . . . Corruption 1 | . . . . 1 . . . . Feedback Blocked . | . . . . . . . . . Robot Schematics Acquired . | . . . . . . . . . Robots Built 2 | . . . . 2 . . . . Authchips . | . . . . . . . . . Time 58 | . . . . 58 . . . . Total Robot Build Rating 6 | . . . . 6 . . . . Part Schematics Acquired 1 | . . . . . . 1 . . Parts Built 2 | . . . . . 2 . . . Authchips . | . . . . . . . . . Time 35 | . . . . . 35 . . . Total Part Build Rating 12 | . . . . . 12 . . . Parts Repaired 2 | . . . . . . 1 1 . Time 74 | . . . . . . 30 44 . Parts Recycled . | . . . . . . . . . Recycled Matter 137 | . . . . . . 137 . . Retrieved Matter 137 | . . . . . . 137 . . Retrieved Components . | . . . . . . . . . Parts Scanalyzed 2 | . . . . . 1 1 . . Part Schematics Acquired 1 | . . . . . . 1 . . Parts Damaged . | . . . . . . . . . Bothacking | -11 -10 -9 -8 -7 -6 -5 -4 -4 ------------ Run | Jun Mat Mat Mat Fac Fac Fac Fac Ext Used RIF Installer . | . . . . . . . . . Robots Hacked . | . . . . . . . . . Non-combat . | . . . . . . . . . Combat . | . . . . . . . . . Robot Hacks Applied . | . . . . . . . . . Relay Couplers Released . | . . . . . . . . . Fabnet Peak Effective % . | . . . . . . . . . Robots Rewired . | . . . . . . . . . Allies Hacked . | . . . . . . . . . Hacks Repelled . | . . . . . . . . . Allies | -11 -10 -9 -8 -7 -6 -5 -4 -4 -------- Run | Jun Mat Mat Mat Fac Fac Fac Fac Ext Total Allies 2 | . . . . 2 . . . . Largest Group 2 | . . . . 2 . . . . Highest-Rated Group 42 | . . . . 42 . . . . Highest-Rated Ally 21 | . . . . 21 . . . . Total Orders . | . . . . . . . . . Ally Attacks 2 | . . . . 2 . . . . Total Damage 31 | . . . . 31 . . . . Kills . | . . . . . . . . . Allies Corrupted . | . . . . . . . . . Allies Melted . | . . . . . . . . . Intel | -11 -10 -9 -8 -7 -6 -5 -4 -4 ------- Run | Jun Mat Mat Mat Fac Fac Fac Fac Ext Robot Analysis Total . | . . . . . . . . . Derelict Logs Recovered . | . . . . . . . . . Drone Launches . | . . . . . . . . . Drone Recoveries . | . . . . . . . . . Exploration | -11 -10 -9 -8 -7 -6 -5 -4 -4 ------------- Run | Jun Mat Mat Mat Fac Fac Fac Fac Ext Turns Passed 7928 | . 318 413 688 2489 1836 1198 901 85 Spaces Moved 4907 | 1 210 308 423 1708 1031 668 506 52 Core 98 | . . . . . . . 63 35 Treads 7 | . . . . 1 6 . . . Legs 113 | 1 73 . . . 38 . 1 . Wheels 4689 | . 137 308 423 1707 987 668 442 17 Hover . | . . . . . . . . . Flight . | . . . . . . . . . Fastest Speed 50 | 120 95 86 93 105 105 110 50 50 Average Speed 117 | 120 109 88 98 114 139 123 116 66 Slowest Speed 410 | 120 190 93 115 410 410 150 330 100 Overloaded Moves . | . . . . . . . . . Propulsion Burnouts . | . . . . . . . . . Robots Hopped . | . . . . . . . . . Cave-ins Triggered . | . . . . . . . . . Exploration Rate (%) 25 | 2 32 33 42 46 24 27 14 9 Regions Visited 8 Branch Regions 1 Pre-discovered Areas . | . . . . . . . . . Known Exits Taken 4 | . . . 1 . 1 1 1 . Unknown Exits Taken 4 | 1 1 1 . 1 . . . . Scrap Searched . | . . . . . . . . . Spaces Dug 18 | . . . . 4 4 9 1 . Terrain Destroyed 267 | . 2 . . 74 85 19 86 1 Melee 16 | . . . . 4 2 9 1 . Projectile 62 | . . . . 1 25 10 25 1 AOE 189 | . 2 . . 69 58 . 60 . Terrain Rammed . | . . . . . . . . . Walls Destroyed . | . . . . . . . . . Machines Disabled . | . . . . . . . . . Actions | -11 -10 -9 -8 -7 -6 -5 -4 -4 --------- Run | Jun Mat Mat Mat Fac Fac Fac Fac Ext Total 6403 | . 262 398 602 2102 1304 966 695 74 Wait 690 | . 9 36 76 184 105 199 81 . Move 4899 | . 209 307 422 1707 1030 667 505 52 Hop . | . . . . . . . . . Pick Up 115 | . 9 11 13 36 27 12 7 . Fast Attach 46 | . 3 1 3 11 14 4 6 4 Attach 66 | . 1 3 9 11 16 11 14 1 Detach 26 | . 1 1 3 5 7 7 2 . Swap 99 | . 4 6 9 29 21 13 17 . Drop 119 | . 7 9 14 42 30 8 9 . Fire 303 | . 19 24 53 66 52 23 53 13 Melee 24 | . . . . 6 2 11 1 4 Ram 3 | . . . . . . 3 . . Kick . | . . . . . . . . . Crush . | . . . . . . . . . Escape Stasis 12 | . . . . 4 . 8 . . Rewire 1 | . . . . 1 . . . . Trap . | . . . . . . . . . Miscellaneous . | . . . . . . . . . Route ------- -11/Junkyard -10/Materials -9/Materials -8/Materials -7/Factory (discovered 5 exits: *Fac / *Sto x2 / *Low x2) -6/Factory -5/Factory (discovered 6 exits: *Fac x4 / *Upp x2) -4/Factory (discovered 5 exits: Upp x2 / *Ext x2 / Arm) -4/Extension History --------- Turn | Location | Event 1 | -11/Junkyard | Discovered new exit (range 0) 1 | -11/Junkyard | Entered Materials 302 | -10/Materials | Discovered new exit (range 13) 304 | -10/Materials | Build established: Mutant 319 | -10/Materials | Entered another Materials area 319 | -9/Materials | Evolved 2 slots: Propulsion x1, Weapon x1 642 | -9/Materials | Discovered new exit (range 16) 659 | -9/Materials | Build established: Gunner 732 | -9/Materials | Entered another Materials area 732 | -8/Materials | Evolved 2 slots: Utility x2 1396 | -8/Materials | Discovered new exit (range 12) 1411 | -8/Materials | Identified exit to Factory 1420 | -8/Materials | Entered Factory 1420 | -7/Factory | Evolved 2 slots: Utility x1, Weapon x1 1556 | -7/Factory | Build established: Tank 1588 | -7/Factory | Garrison activated, responded to threat 1712 | -7/Factory | Fabricated H-55 Commando (x2) 1717 | -7/Factory | P-60 Hacker assimilated allied Commando 4a 2228 | -7/Factory | Discovered new exit (range 15) 2469 | -7/Factory | Discovered new exit (range 8) 2558 | -7/Factory | Build established: Scavenger-Tank 2808 | -7/Factory | Discovered new exit (range 13) 3168 | -7/Factory | Build established: Tank 3259 | -7/Factory | Cargo convoy interrupted 3728 | -7/Factory | Identified exit to Storage 3728 | -7/Factory | Identified exit to Lower Caves 3749 | -7/Factory | Build established: Scavenger-Tank 3820 | -7/Factory | First assault squad dispatched 3909 | -7/Factory | Entered another Factory area 3909 | -6/Factory | Evolved 2 slots: Utility x2 4100 | -6/Factory | Garrison activated, responded to threat 4476 | -6/Factory | Garrison activated, responded to threat 4547 | -6/Factory | Build established: Hacker-Gunner 4618 | -6/Factory | Fabricated Enh. Gauss Cannon (x2) 4735 | -6/Factory | Spotted B-75 Beast 4875 | -6/Factory | Cargo convoy interrupted 4920 | -6/Factory | Destroyed 8 combat bots 4948 | -6/Factory | Lost 5 parts (2n3w) 5057 | -6/Factory | Lost 8 parts (1p2n2u3w) 5659 | -6/Factory | First assault squad dispatched 5661 | -6/Factory | Discovered new exit (range 5) 5703 | -6/Factory | Identified exit to Factory 5745 | -6/Factory | Entered another Factory area 5745 | -5/Factory | Evolved 2 slots: Power x1, Utility x1 5807 | -5/Factory | Identified exit to Upper Caves 5909 | -5/Factory | Identified exit to Factory 6610 | -5/Factory | Spotted B-75 Beast 6774 | -5/Factory | Repaired Broken Arm. Huge Wheel 6943 | -5/Factory | Entered another Factory area 6943 | -4/Factory | Evolved 2 slots: Propulsion x1, Utility x1 7118 | -4/Factory | Identified exit to Upper Caves 7118 | -4/Factory | Identified exit to Extension 7118 | -4/Factory | Identified exit to Armory 7270 | -4/Factory | Repaired Broken Arm. Wheel 7640 | -4/Factory | Garrison activated, responded to threat 7792 | -4/Factory | System corruption reached 10% 7800 | -4/Factory | Core integrity fell below 50% 7813 | -4/Factory | Released all parts (6) 7843 | -4/Factory | Lost 22 parts (3p6n6u7w) 7844 | -4/Factory | Entered Extension 7861 | -4/Extension | Core integrity fell below 20% 7929 | -4/Extension | Self-destructed Last Messages --------------- 07875_ G-67 Veteran suffers critical hit (Blast). 07875_ G-67 Veteran destroyed. 07877_ Critical hit (Burn: +50). 07877_ G-67 Veteran knocked back. 07882_ System corrupted: Hvy. Assault Cannon fused. 07885_ Destroyed Plasma Rifle. 07894_ Hvy. Assault Cannon destroyed. 07894_ Critical hit (Burn: +37). 07896_ Acquired Com. Wheel. 07899_ Acquired Adv. Heat Sink. 07900_ Acquired 3 matter. 07902_ System corrupted: Matter fused (-7). 07905_ Acquired Ripper. 07910_ Sneak attack on CB-HHF(g). 07910_ Destroyed Adv. Heat Sink. 07914_ Acquired Ripper. 07921_ System corrupted: Component data lost. 07925_ Ripper follow-up attack on G-67 Veteran. 07925_ G-67 Veteran destroyed. 07928_ Acquired 21 matter. Map ----- +----------------------------------------------------+ | | | | | | | | | | | | | | | ????????????????????????????????????????? | | ????????????????????????????????????????? | | ????????????????????????????????????????? | | ????????????##??????????????????????????? | | ???????????? ??????????????????????????? | | ???????????? #??????????????????????????? | | ???????????# #??????????????????????????? | | ???????????# #??????????????????????????? | | ???????????# #??????????????????????????? | | ???????????# ##?????????????????????????? | | ???????????# ??????????????????????????? | | ???????????# #??????????????????????????? | | ?????####### #?#####+##?????????????????? | | ?????# %%!#?# #?????????????????? | | ?????# #?# #?????????????????? | | ?????# % % ### / #?????????????????? | | ?????# %%% % + #?????????????????? | | ?????# #"####### lhg #?????????????????? | | ?????# ##??????#@ #?????????????????? | | ?????# #???????########?????????????????? | | ?????# #????????????????????????????????? | | ?????# #????????????????????????????????? | | ?????# #????????????????????????????????? | | ?????# #????????????????????????????????? | | ?????# #????????????????????????????????? | | ?????# #????????????????????????????????? | | ?????# #????????????????????????????????? | | ???### #????????????????????????????????? | | ???#"" #????????????????????????????????? | | ???#T #????????????????????????????????? | | ???### #????????????????????????????????? | | ?????# #????????????????????????????????? | | ?????# #????????????????????????????????? | | ?????# #????????????????????????????????? | | ?##### #####????????????????????????????? | | ?# "" "" #????????????????????????????? | | ?# " " ##########???????????????????? | | ?# ??????????????????? | | ?# ??????????????????? | | ?# ??????????????????? | | ?# ??????????????????? | | ?# ??????????????????? | | ?# ##########???????????????????? | +----------------------------------------------------+ Best States ------------- Heat Dissipation 97 Energy Generation 37 Energy Capacity 365 Matter Stores 300 Matter Capacity 300 Sight Range 22 Terrain Scan Range 14 Terrain Scan Density 10 Base Temperature (-) 200 Corruption Block 8 Armor Coverage 450 Resistance: TH 10 Weapon Cycling 15 Evasion (%) 55 Targeting Accuracy 8 Armor Integrity Analysis 30 Recoil Reduction 1 Offensive Hacking 30 Item Schematics ----------------- Arm. Wheel | -5/Factory | Scanalyzed Robot Schematics ------------------ None Fabricated ------------ H-55 Commando | x2 | -7/Factory | Preloaded Enh. Gauss Cannon | x2 | -6/Factory | Preloaded Alien Tech Used ----------------- None Achievements -------------- None Challenges ------------ None Game ------ Seed RelayLayeredArchive Manual? 0 Play Time 01:27:32 Cumulative 152.8 hours Start 2023.11.02 @ 14:47:13 End 2023.11.02 @ 16:16:19 Sessions 1 Manual Loads 0 Difficulty Rogue Special Mode None Game No. 88 Rogue 88 Adventurer 0 Explorer 0 Win Type - Total 0 Types 0/0/0/0/0/0/0/0/0 Lore% 32 Gallery% 62 Achievement% 48 Wizard Run 0 Options --------- ASCII 0 Keyboard 1 Movement Numpad Keybinds 0 Fullscreen 1 Font 24/Smallcaps Map View 76x50 Tactical HUD 1 Map Filters NONE Filters NONE Steam 1 RUN: a63b57f3-b987-4c77-b6e7-1f49fd24980b